Cogmind - Beta 15 @@@ ROGUE MODE // 2025.10.13 @ 01:28:50 Player: rinsethewax Result: Destroyed by Y-54 Guardian with Gatling Laser Performance ------------- Evolutions (3) 1500 Regions Visited (6) 1200 Robots Destroyed (31) 155 Value Destroyed (893) 893 Prototype IDs (1) 20 Alien Tech Used (0) 0 Bonus (58) 58 TOTAL SCORE: 3826 Bonus ------- Follower Combat Kills 58 Cogmind --------- Core Integrity 0/700 Matter 9/300 Energy 85/100 System Corruption 0% Temperature Cool (12) Movement Core (500) Ox9 Location -7/Factory Parts ------- > --- POWER (2) -------- (None) > --- PROPULSION (5) --- (None) > --- UTILITY (3) ------ Small Storage Unit Large Storage Unit Improved Utility Shielding > --- WEAPON (3) ------- Chainsword > --- INVENTORY (15) --- Heat Sink Improved Heat Sink Medium Matter Pod (100) Transport Network Coupler Kinecellerator ECM Suite Peak State ------------ > --- POWER ------------ Nuclear Core > --- PROPULSION ------- Aluminum Leg Aluminum Leg Titanium Leg VSS Leg VSS Leg > --- UTILITY ---------- Improved Heat Sink Large Storage Unit Kinecellerator > --- WEAPON ----------- Heavy Assault Rifle Improved Assault Rifle Gauss Cannon > --- INVENTORY -------- Aluminum Leg Aluminum Leg Aluminum Leg Aluminum Leg Heat Sink Improved Heat Sink Small Storage Unit Medium Matter Pod Transport Network Coupler ECM Suite Improved Utility Shielding Small Laser Beam Rifle [Rating: 32] Favorites ----------- Power Light Ion Engine Engine Light Ion Engine Power Core Nuclear Core Propulsion Aluminum Leg Leg Aluminum Leg Flight Unit VTOL Module Utility Large Storage Unit Device Heat Sink Storage Large Storage Unit Protection Improved Utility Shielding Weapon Small Laser Energy Gun Small Laser Ballistic Gun Heavy Assault Rifle Ballistic Cannon Light Cannon Special Weapon Mining Laser Slashing Weapon Chainsword Build | -11 -10 -10 -9 -9 -8 -7 ------- Run | Yrd Mat Min Mat Min Mat Fac Slots Evolved 6 | . . . 2 . 2 2 Power 1 | . . . . . 1 . Propulsion 3 | . . . 2 . . 1 Utility 1 | . . . . . . 1 Weapon 1 | . . . . . 1 . Parts Attached 49 | 6 3 3 12 . 8 17 Power 6 | 1 . . 1 . 1 3 Engine 3 | 1 . . 1 . 1 . Core 3 | . . . . . . 3 Reactor . | . . . . . . . Propulsion 20 | 2 . 2 8 . 2 6 Treads . | . . . . . . . Leg 18 | 2 . 2 8 . 2 4 Wheel . | . . . . . . . Hover . | . . . . . . . Flight 2 | . . . . . . 2 Utility 7 | 1 1 . 1 . 2 2 Device 4 | . 1 . . . 1 2 Storage 2 | 1 . . 1 . . . Processor . | . . . . . . . Hackware . | . . . . . . . Protection 1 | . . . . . 1 . Artifact . | . . . . . . . Weapon 16 | 2 2 1 2 . 3 6 Energy Gun 6 | 2 1 . . . . 3 Energy Cannon . | . . . . . . . Ballistic Gun 5 | . 1 . 1 . 2 1 Ballistic Cannon 3 | . . . 1 . 1 1 Launcher . | . . . . . . . Special Weapon 1 | . . 1 . . . . Impact Weapon . | . . . . . . . Slashing Weapon 1 | . . . . . . 1 Piercing Weapon . | . . . . . . . Special Melee Weapon . | . . . . . . . Unidentified Prototypes 1 | . . . . . 1 . Parts Lost 33 | . 2 1 1 . . 29 Power 5 | . . . . . . 5 Propulsion 14 | . . . . . . 14 Utility 2 | . . . . . . 2 Weapon 12 | . 2 1 1 . . 8 Highest Loss Streak 23 | . 2 1 1 . . 23 To Critical Strikes . | . . . . . . . Average Backups 9 | 3 4 8 10 13 13 11 Power . | . . . . 1 . . Propulsion 2 | 2 2 3 1 3 4 2 Utility 4 | . 1 5 4 5 6 6 Weapon 1 | . . . 2 4 2 1 Tool/Special . | . . . . . . . Unused Backups 8 | . 1 . 3 . . 4 Power . | . . . . . . . Propulsion 2 | . . . 2 . . . Utility 6 | . 1 . 1 . . 4 Weapon . | . . . . . . . Tool/Special . | . . . . . . . Average Slot Usage (%) 89 | . 89 88 93 100 99 72 Engine 12 | . 14 14 11 11 18 5 Leg 32 | . 28 28 37 44 36 27 Device 9 | . 6 14 11 11 8 8 Storage 10 | . 14 14 11 11 9 8 Energy Gun 7 | . 15 14 10 . . 1 Ballistic Gun 7 | . 9 1 . 11 17 10 Ballistic Cannon 4 | . . . 5 11 9 4 Special Weapon 1 | . . 1 5 . . . Peak Build Rating 32 | 6 7 7 12 12 27 32 Average Rating 13 | 3 6 6 9 12 22 21 On Entrance 10 | . 6 7 7 12 12 27 Naked Turns . | . . . . . . . Heaviest Build 50 | 11 12 12 34 34 49 50 Greatest Support 61 | 20 20 20 40 40 49 61 Greatest Overweight (x) 8 | 1 . . . . 1 8 Average Overweight (x) . | . . . . . . . Largest Inventory Capacity 15 | 8 8 8 15 15 15 15 Average Capacity 12 | 5 8 8 14 15 15 15 Most Carried 15 | 5 8 8 15 13 15 15 Average Carried 9 | 3 4 8 10 13 13 11 Final Capacity 15 | 8 8 8 15 15 15 15 Final Carried 14 | 3 8 8 13 13 14 6 Class Distribution -------------------- 44% | Scavenger-Mutant 28% | Mutant 16% | Scavenger-Gunner 7% | Gunner Dominant Class ---------------- Mutant | -10/Materials Scavenger-Mutant | -10/Mines Scavenger-Mutant | -9/Materials Scavenger-Mutant | -9/Mines Scavenger-Gunner | -8/Materials Mutant | -7/Factory Resources | -11 -10 -10 -9 -9 -8 -7 ----------- Run | Yrd Mat Min Mat Min Mat Fac Matter Collected 935 | 178 103 93 247 34 . 280 Remotely . | . . . . . . . Salvage Created 971 | 84 82 93 316 . . 396 Parts 69 | 4 4 4 37 . . 20 Haulers Intercepted . | . . . . . . . Recyclers Shooed 1 | 1 . . . . . . Parts Field Recycled . | . . . . . . . Retrieved Matter . | . . . . . . . Parts Self-Destructed . | . . . . . . . Prevented . | . . . . . . . Kills | -11 -10 -10 -9 -9 -8 -7 ------- Run | Yrd Mat Min Mat Min Mat Fac Combat Hostiles Destroyed 26 | . 2 2 13 . . 9 Guns 16 | . 2 2 6 . . 6 Cannons 10 | . . . 7 . . 3 Classes Destroyed 9 | 2 1 . 3 . . 3 Worker 1 | . . . . . . 1 Tunneler 1 | 1 . . . . . . Recycler 2 | 1 . . . . . 1 Watcher 1 | . . . 1 . . . Swarmer 10 | . . . 7 . . 3 Grunt 11 | . 2 2 4 . . 3 Duelist 1 | . . . . . . 1 Sentry 2 | . . . 2 . . . Specialist 2 | . . . . . . 2 Best Kill Streak 8 | 2 2 2 8 . . 5 Combat Bots Only 8 | . 2 2 8 . . 4 Max Kills in Single Turn 2 | 1 1 1 2 . . 2 Gunslinging . | . . . . . . . Exploded . | . . . . . . . Melee . | . . . . . . . Uniques/NPCs Destroyed . | . . . . . . . Combat | -11 -10 -10 -9 -9 -8 -7 -------- Run | Yrd Mat Min Mat Min Mat Fac Hostile Shots Fired 369 | . 26 13 64 . 2 264 Missed 100 | . 6 4 17 . 1 72 Hits 269 | . 20 9 47 . 1 192 Melee 32 | . . . . . . 32 Projectile 237 | . 20 9 47 . 1 160 Critical Strikes 7 | . 2 . 1 . . 4 Damage Taken 3987 | 22 290 137 541 . 15 2982 Core 851 | 11 28 17 95 . . 700 Absorbed by Shields . | . . . . . . . Redirected to Shielding 71 | . . . . . . 71 Core Remaining (%) 87 | 95 . 77 . 76 100 . Volleys Fired 106 | 3 17 8 34 . . 44 Largest 3 | 2 2 2 2 . . 3 Hottest 140 | 80 80 60 140 . . 136 Shots Fired 202 | 6 26 13 62 . . 95 Gun 146 | 6 26 13 34 . . 67 Cannon 53 | . . . 25 . . 28 Launcher . | . . . . . . . Special 3 | . . . 3 . . . Kinetic 125 | . 7 5 25 . . 88 Thermal 67 | 3 12 8 37 . . 7 Explosive . | . . . . . . . Electromagnetic 10 | 3 7 . . . . . Robot Hit Streak 8 | 6 6 3 7 . . 8 Robot Miss Streak 8 | . 2 2 3 . . 8 Penetration Max . | . . . . . . . Secondary Targets . | . . . . . . . Shots Hit Robots 136 | 6 17 8 39 . . 66 Core Hits 61 | 3 6 5 21 . . 26 Critical Kills . | . . . . . . . Critical Parts Destroyed . | . . . . . . . Critical Strikes 3 | . . . 1 . . 2 Blast 3 | . . . 1 . . 2 Melee Attacks . | . . . . . . . Impact . | . . . . . . . Slashing . | . . . . . . . Piercing . | . . . . . . . Sneak Attacks . | . . . . . . . Combat Hostiles . | . . . . . . . Follow-up Attacks . | . . . . . . . Damage Inflicted 2340 | 112 228 88 601 . . 1311 Guns 1426 | 50 228 88 230 . . 830 Cannons 796 | . . . 315 . . 481 Explosions 62 | 62 . . . . . . Melee . | . . . . . . . Ramming 8 | . . . 8 . . . Kinetic 1661 | . 64 32 315 . . 1250 Thermal 568 | 72 101 56 278 . . 61 Explosive . | . . . . . . . Electromagnetic 103 | 40 63 . . . . . Impact . | . . . . . . . Slashing . | . . . . . . . Piercing . | . . . . . . . Highest Corruption . | . . . . . . . Average Corruption . | . . . . . . . Corruption Purged . | . . . . . . . Corruption Blocked . | . . . . . . . Overload Shots . | . . . . . . . Overflow Damage 18 | . . . 6 . . 12 Projectiles 18 | . . . 6 . . 12 Explosions . | . . . . . . . Melee . | . . . . . . . Knockbacks 11 | . . . 4 . . 7 Impact . | . . . . . . . Kinetic 10 | . . . 3 . . 7 Secondary 1 | . . . 1 . . . Self-Inflicted Damage 22 | 22 . . . . . . Shots 1 | 1 . . . . . . Rammed . | . . . . . . . Targets Rammed 2 | . . . 2 . . . Kicked 2 | . . . 2 . . . Crushed . | . . . . . . . Highest Temperature 209 | 36 209 5 6 . . 135 Average Temperature 89 | 20 143 5 5 . . 51 Received Heat Transfer 843 | . 192 78 159 . 9 405 Siege Activations . | . . . . . . . Martial Activations . | . . . . . . . Shielding Activations . | . . . . . . . Robots Disrupted . | . . . . . . . Combat Hostiles . | . . . . . . . Robots Corrupted . | . . . . . . . Combat Hostiles . | . . . . . . . Parts Fried . | . . . . . . . Impact Corruptions . | . . . . . . . Robots Melted . | . . . . . . . Combat Hostiles . | . . . . . . . Parts Melted 1 | . . 1 . . . . Heat Transferred 1199 | 75 225 125 625 . . 149 Parts Sabotaged . | . . . . . . . Parts Stolen . | . . . . . . . Parts Stripped . | . . . . . . . Power Chain Reactions 2 | 2 . . . . . . Alert | -11 -10 -10 -9 -9 -8 -7 ------- Run | Yrd Mat Min Mat Min Mat Fac Maximum Alert Level 1 | . . . 1 . . . Low Security (%) 98 | 100 100 100 94 100 100 100 Level 1 1 | . . . 5 . . . Level 2 . | . . . . . . . Level 3 . | . . . . . . . Level 4 . | . . . . . . . Level 5 . | . . . . . . . High Security . | . . . . . . . Max Security . | . . . . . . . Peak Influence 239 | 10 50 30 239 90 35 76 Initial 90 | . . . . 90 35 . Average 24 | 1 10 6 57 90 4 20 Influence Increases 738 | 10 50 50 384 . . 244 Destroy 0b10 Robot/C 560 | . 40 40 300 . . 180 Destroy 0b10 Robot/NC 25 | 10 . . 5 . . 10 Destroy Leader 112 | . 10 10 72 . . 20 Allied During Kill 4 | . . . 4 . . . Destroy Structure 7 | . . . 3 . . 4 Lose Combat Pursuer 30 | . . . . . . 30 Influence Decreases 738 | 10 50 50 153 141 90 244 Entered New Map 196 | . . . . 141 55 . Time Decay 378 | 10 50 40 143 . 35 100 Lost Part 164 | . . 10 10 . . 144 Squads Dispatched 5 | . 2 . 1 . . 2 Investigation 1 | . 1 . . . . . Extermination . | . . . . . . . Reinforcement 4 | . 1 . 1 . . 2 Assault . | . . . . . . . Garrison . | . . . . . . . Intercept . | . . . . . . . Searches Triggered . | . . . . . . . Construction Impeded . | . . . . . . . Haulers Reinforced . | . . . . . . . Active Scanning Responses . | . . . . . . . Cargo Convoy Interrupts . | . . . . . . . Stealth | -11 -10 -10 -9 -9 -8 -7 --------- Run | Yrd Mat Min Mat Min Mat Fac Distress Signals 3 | . 1 . 1 . . 1 Communications Jammed . | . . . . . . . Distress Signals . | . . . . . . . Times Spotted 42 | . 5 2 17 . 4 14 Peak Tracking Total 8 | . 4 2 8 . 4 4 Tactical Retreats 2 | . . . . . . 2 Traps | -11 -10 -10 -9 -9 -8 -7 ------- Run | Yrd Mat Min Mat Min Mat Fac Traps Triggered 2 | . 1 . . . . 1 Indirectly . | . . . . . . . Trap Hack Attempts . | . . . . . . . Triggered . | . . . . . . . Disarmed . | . . . . . . . Reprogrammed . | . . . . . . . Reused . | . . . . . . . Traps Extracted . | . . . . . . . Installed . | . . . . . . . Triggered . | . . . . . . . Machines | -11 -10 -10 -9 -9 -8 -7 ---------- Run | Yrd Mat Min Mat Min Mat Fac Machines Disabled . | . . . . . . . Max in Single Turn . | . . . . . . . Machines Repaired . | . . . . . . . Machines Dismantled . | . . . . . . . Machines Sabotaged . | . . . . . . . Overloaded Fab Kills . | . . . . . . . Hacking | -11 -10 -10 -9 -9 -8 -7 --------- Run | Yrd Mat Min Mat Min Mat Fac Machines Accessed 1 | . 1 . . . . . Terminals . | . . . . . . . Fabricators . | . . . . . . . Repair Stations . | . . . . . . . Recycling Units 1 | . 1 . . . . . Scanalyzers . | . . . . . . . Garrison Access . | . . . . . . . Total Hacks 3 | . 3 . . . . . Successful 2 | . 2 . . . . . Failed 1 | . 1 . . . . . Catastrophic . | . . . . . . . Database Lockouts . | . . . . . . . Manual . | . . . . . . . Terminals . | . . . . . . . Fabricators . | . . . . . . . Repair Stations . | . . . . . . . Recycling Units 3 | . 3 . . . . . Scanalyzers . | . . . . . . . Garrison Access . | . . . . . . . Terminal Hacks . | . . . . . . . Fabricator Hacks . | . . . . . . . Repair Station Hacks . | . . . . . . . Recycling Unit Hacks 2 | . 2 . . . . . Report Inventory 1 | . 1 . . . . . Retrieve Components 1 | . 1 . . . . . Scanalyzer . | . . . . . . . Garrison Access Hacks . | . . . . . . . Unauthorized Hacks . | . . . . . . . Terminals . | . . . . . . . Fabricators . | . . . . . . . Repair Stations . | . . . . . . . Recycling Units . | . . . . . . . Scanalyzers . | . . . . . . . Garrison Access . | . . . . . . . Data Cores Recovered . | . . . . . . . Used . | . . . . . . . Hacking Detections . | . . . . . . . Full Trace Events . | . . . . . . . Feedback Events . | . . . . . . . Feedback Blocked . | . . . . . . . Robot Schematics Acquired . | . . . . . . . Robots Built . | . . . . . . . Authchips . | . . . . . . . Time . | . . . . . . . Total Robot Build Rating . | . . . . . . . Part Schematics Acquired . | . . . . . . . Parts Built . | . . . . . . . Authchips . | . . . . . . . Time . | . . . . . . . Total Part Build Rating . | . . . . . . . Parts Repaired . | . . . . . . . Time . | . . . . . . . Parts Recycled . | . . . . . . . Recycled Matter . | . . . . . . . Retrieved Matter . | . . . . . . . Retrieved Components 3 | . 3 . . . . . Parts Scanalyzed . | . . . . . . . Part Schematics Acquired . | . . . . . . . Parts Damaged . | . . . . . . . Bothacking | -11 -10 -10 -9 -9 -8 -7 ------------ Run | Yrd Mat Min Mat Min Mat Fac Used RIF Installer . | . . . . . . . Robots Hacked . | . . . . . . . Non-combat . | . . . . . . . Combat . | . . . . . . . Robot Hacks Applied . | . . . . . . . Relay Couplers Released . | . . . . . . . Fabnet Peak Effective % . | . . . . . . . Robots Rewired . | . . . . . . . Allies Hacked . | . . . . . . . Hacks Repelled . | . . . . . . . Allies | -11 -10 -10 -9 -9 -8 -7 -------- Run | Yrd Mat Min Mat Min Mat Fac Total Allies 1 | . . 1 . . . . Largest Group 1 | . . 1 1 . . . Highest-Rated Group 31 | . . 31 31 . . . Highest-Rated Ally 31 | . . 31 31 . . . Total Orders . | . . . . . . . Ally Attacks 9 | . . . 9 . . . Total Damage 148 | . . . 148 . . . Kills 2 | . . . 2 . . . Allies Corrupted . | . . . . . . . Allies Melted . | . . . . . . . Intel | -11 -10 -10 -9 -9 -8 -7 ------- Run | Yrd Mat Min Mat Min Mat Fac Active Infowar (turns) . | . . . . . . . Robot Analysis Total . | . . . . . . . Derelict Logs Recovered 1 | . . 1 . . . . Drone Launches . | . . . . . . . Drone Recoveries . | . . . . . . . Exploration | -11 -10 -10 -9 -9 -8 -7 ------------- Run | Yrd Mat Min Mat Min Mat Fac Turns Passed 1703 | 75 218 224 477 11 357 341 Spaces Moved 977 | 55 124 158 258 10 258 114 Core 27 | 23 . . . . . 4 Treads . | . . . . . . . Legs 947 | 32 124 158 258 10 258 107 Wheels . | . . . . . . . Hover . | . . . . . . . Flight 3 | . . . . . . 3 Fastest Speed 50 | 50 120 120 120 120 115 110 Average Speed 121 | 92 120 120 120 120 122 141 Slowest Speed 515 | 120 120 120 120 120 190 515 Overloaded Moves . | . . . . . . . Propulsion Burnouts . | . . . . . . . Robots Hopped . | . . . . . . . Potential Cave-ins . | . . . . . . . Cave-ins Triggered . | . . . . . . . Exploration Rate (%) 15 | 3 21 27 22 8 21 4 Regions Visited 6 Branch Regions 2 Pre-discovered Areas . | . . . . . . . Known Exits Taken 1 | . . . . 1 . . Unknown Exits Taken 5 | 1 1 1 1 . 1 . Scrap Searched 1 | . . . . 1 . . Spaces Dug . | . . . . . . . Terrain Destroyed 11 | 6 . . 1 . . 4 Melee . | . . . . . . . Projectile 5 | . . . 1 . . 4 AOE 6 | 6 . . . . . . Terrain Rammed . | . . . . . . . Walls Destroyed . | . . . . . . . Machines Disabled . | . . . . . . . Actions | -11 -10 -10 -9 -9 -8 -7 --------- Run | Yrd Mat Min Mat Min Mat Fac Total 1300 | 71 169 180 356 9 301 214 Wait 93 | 2 16 10 29 . 25 11 Move 971 | 54 123 157 257 9 257 114 Hop . | . . . . . . . Pick Up 52 | 6 9 . 15 . 5 17 Fast Attach 5 | 3 . 1 . . 1 . Attach 41 | 3 3 . 4 . 5 26 Detach 2 | . . . . . 1 1 Swap 14 | . . 2 8 . 3 1 Drop 14 | . 1 2 7 . 4 . Fire 106 | 3 17 8 34 . . 44 Melee . | . . . . . . . Ram . | . . . . . . . Kick 2 | . . . 2 . . . Crush . | . . . . . . . Escape Stasis . | . . . . . . . Rewire . | . . . . . . . Trap . | . . . . . . . Miscellaneous . | . . . . . . . Route ------- -11/Scrapyard -10/Materials -10/Mines -9/Materials (discovered 2 exits: Mat / [*Min]) -9/Mines -8/Materials -7/Factory History --------- Turn | Location | Event 9 | -11/Scrapyard | Discovered new exit (range 15) 76 | -11/Scrapyard | Entered Materials 189 | -10/Materials | Discovered new exit (range 6) 294 | -10/Materials | Entered Mines 308 | -10/Mines | Build established: Mutant 329 | -10/Mines | Met a Derelict bent on vengeance 342 | -10/Mines | Learned location of 1 exit from Materials 458 | -10/Mines | Discovered new exit (range 13) 486 | -10/Mines | Received a Mining Laser from a helpful Derelict 518 | -10/Mines | Entered Materials 518 | -9/Materials | Accompanied by 1 ally 518 | -9/Materials | Evolved 2 slots: Propulsion x2 519 | -9/Materials | Identified exit to Materials 610 | -9/Materials | Build established: Scavenger-Mutant 926 | -9/Materials | Discovered new exit (range 7) 989 | -9/Materials | Destroyed 8 combat bots 995 | -9/Materials | Entered Mines 999 | -9/Mines | Discovered exit to Materials (range 5) 1006 | -9/Mines | Entered Materials 1006 | -8/Materials | Evolved 2 slots: Power x1, Weapon x1 1361 | -8/Materials | Discovered new exit (range 3) 1363 | -8/Materials | Entered Factory 1363 | -7/Factory | Evolved 2 slots: Propulsion x1, Utility x1 1560 | -7/Factory | Lost 6 parts (2p2n1u1w) 1664 | -7/Factory | Core integrity fell below 50% 1692 | -7/Factory | Core integrity fell below 20% 1704 | -7/Factory | Destroyed by Y-54 Guardian with Gatling Laser Last Messages --------------- Aluminum Leg destroyed. K-01 Serf collects debris. M-28 Smith repairs L-41 Fighter. M-28 Smith repairs L-41 Fighter Microactuators. K-01 Serf collects debris. Acquired Hpw. Shotgun. Aluminum Leg destroyed. K-01 Serf collects debris. VTOL Module destroyed. K-01 Serf collects debris. Nuclear Core destroyed. K-01 Serf collects debris. L-41 Fighter destroyed. K-01 Serf destroyed. Hpw. Shotgun destroyed. Acquired 8 matter. VTOL Module destroyed. R-06 Scavenger collects Wheel. R-06 Scavenger collects Lgt. Ion Engine. Acquired Chainsword. Map ----- +----------------------------------------------------+ | ????????????????????????????????????????????? | | ????????????????????????????????????????????? | | ????????????????????????????????????????????? | | ????????????????????????????????????????????? | | ????????????????????????????????????????????? | | ????????????????????????????????????????????? | | ????????????????????????????????????????????? | | ????????????????????????????????????????????? | | ????????????????????????????????????????????? | | ????????????????????????????????????????????? | | ??????????????????????????????##????????????? | | ?????????????????????????????? #????????????? | | ?????????????????????????????? ????????????? | | ????????????????????????????? #????????????? | | ????????????????????????????? #????????????? | | ????????????????????????????? #????????????? | | ????????????????????????????? #????????????? | | ???????????????????????????? #????????????? | | ??????????????????????????## #????????????? | | ?????????????????????????? # #????????????? | | ????????????################ ##???????????? | | ????????????# % = %! ##???????????? | | ????????????# % ##???????????? | | ????????????# %%%! % #????????????? | | ????????????# #########+### ##????????????? | | ????????????#????# @ % #?? ##????????????? | | ?????????????????# !!Y #???#?????????????? | | ????????????#????# =! #?????????????????? | | ????????????# ???# = = #?????????????????? | | ????????????# ???# / #?????????????????? | | ????????????# ??# #?????????????????? | | ????????????+ ??# #?????????????????? | | ????????????# ?#####+####?????????????????? | | ??????????### ##??## #????????????????????? | | ??????????# #### ###??????????????????? | | ??????????# #??????????????????? | | ??????????# #??????????????????? | | ??????????+ H #??????????????????? | | ??????????# % #??????????????????? | | ??????????# #??????????????????? | | ??????????# ## #??????????????????? | | ??????????########## #?????????????????? | | ??????????# # #?????????????????? | | ??????????# """ + ##?????????????????? | | ??????????# ! """ # #??????????????????? | | ??????????# """ # #??????????????????? | | ??????????# # #??????????????????? | | ??????????# """ # #??????????????????? | | ??????????# """ # #??????????????????? | | ??????????# """ # #??????????????????? | +----------------------------------------------------+ Best States ------------- Heat Dissipation 48 Energy Generation 23 Energy Capacity 315 Matter Stores 300 Matter Capacity 300 Sight Range 16 Terrain Scan Density 10 Utility Shielding 66 Evasion (%) 55 Kinecelleration 30 Item Schematics ----------------- None Robot Schematics ------------------ None Fabricated ------------ Nothing Repaired ---------- Nothing Alien Tech Used ----------------- None Achievements -------------- Made in Tau Ceti IV Challenges ------------ None Game ------ Seed JunkFieldthrustFocus Manual? 0 Play Time 00:40:29 Cumulative 4.1 hours Start 2025.10.13 @ 00:27:46 End 2025.10.13 @ 01:28:50 Sessions 1 Manual Loads 0 Difficulty Rogue Special Mode None Game No. 7 Rogue 7 Adventurer 0 Explorer 0 Win Type - Total 0 Types 0/0/0/0/0/0/0/0/0/0 Lore% 2 Gallery% 7 Achievement% 7 Wizard Run 0 Options --------- Layout 1 ASCII 1 Keyboard 0 Movement Mouse Keybinds 0 Fullscreen 1 Font 48/Smallcaps Map View 50x35 Zoom Use 0% Tactical HUD 0 Map Filters NONE Filters NONE Steam 1 RUN: 43128b9e-6b8d-404a-b2c2-9dd15d2aeb21